bitfinex-derivatives/quotes_ETHF0:USTF0_20250602
["timestamp","ask_amount","ask_price","bid_price","bid_amount"]
[1748849503531,1.9452,2506.2,2505.8,5.4634]
[1748849503831,1.9452,2506.2,2505.9,0.47865]
[1748849504032,1.9452,2506.2,2505.7,1.66027435]
[1748849504231,1.9452,2506.2,2505.8,0.47866]
[1748849504232,3.09544944,2506.2,2505.8,0.47866]
[1748849504632,2.61684944,2506.2,2506.0,0.47863]
[1748849504833,2.61684944,2506.2,2505.9,0.47864]
[1748849505535,2.61684944,2506.2,2505.7,0.47868]
[1748849505733,0.47864,2506.0,2505.7,0.47868]
[1748849505938,1.3012,2505.9,2505.7,0.47868]
[1748849506137,1.3012,2505.9,2505.8,0.47867]
[1748849506737,1.3012,2505.9,2505.7,0.47868]
[1748849507337,1.77985,2505.9,2505.7,0.47868]
[1748849507637,1.3012,2505.9,2505.7,0.47868]
[1748849507836,1.3012,2505.9,2505.6,1.31528432]
[1748849508032,0.47869,2505.7,2505.6,0.00598432]
[1748849508542,1.73829,2505.7,2505.6,0.00598432]
[1748849511438,6.2596,2505.7,2504.7,1.17902816]
[1748849511639,6.2596,2505.7,2504.5,1.5819106]
[1748849511640,0.4789,2504.6,2504.5,1.17902816]
[1748849511840,0.47892,2504.5,2504.3,1.17902816]
[1748849512043,1.9249,2504.5,2504.3,0.47895]
[1748849512239,0.6375,2504.5,2504.4,0.47894]
[1748849512439,19.2955,2504.5,2504.3,1.73935]
[1748849513240,20.5829,2504.5,2504.3,1.73935]
[1748849513843,21.06182,2504.5,2504.3,1.73935]
[1748849514238,20.5829,2504.5,2504.2,3.21378432]
[1748849514441,0.47895,2504.4,2504.2,3.21378432]
[1748849514744,1.3749,2504.3,2504.2,3.21378432]
[1748849514945,1.3749,2504.3,2504.2,3.69276432]
[1748849515440,1.3749,2504.3,2504.2,3.21378432]
[1748849515646,1.3749,2504.3,2504.2,3.69276432]
[1748849516334,1.3749,2504.3,2504.2,3.21378432]
[1748849516842,1.3749,2504.3,2504.2,3.69276432]
[1748849517143,1.3749,2504.3,2504.2,3.21378432]
[1748849517646,19.75042,2504.5,2504.3,0.47895]
[1748849517841,19.75042,2504.5,2504.2,3.69275432]
[1748849518147,1.3645,2504.4,2504.2,3.69275432]
[1748849518443,1.84344,2504.4,2504.2,3.21378432]
[1748849518648,1.3645,2504.4,2504.2,3.69275432]
[1748849518847,0.47896,2504.3,2504.2,0.00598432]
[1748849519147,5.05125,2504.4,2504.2,0.48496432]
[1748849519946,4.5723,2504.4,2504.2,0.48496432]
[1748849520251,4.5723,2504.4,2504.3,0.47896]
[1748849520550,4.5723,2504.4,2504.2,0.00598432]
[1748849520945,5.05125,2504.4,2504.2,0.00598432]
[1748849521747,4.5723,2504.4,2504.2,0.00598432]
[1748849521943,4.5723,2504.4,2504.3,0.47896]
[1748849522148,3.2078,2504.4,2504.3,0.47896]
[1748849522348,3.2078,2504.4,2504.3,2.53326]
[1748849523156,0.48487432,2504.7,2504.4,0.47893]
[1748849523157,3.69267432,2504.7,2504.4,0.47893]
[1748849523453,1.303,2504.6,2504.5,0.47892]
[1748849523655,0.00598432,2504.7,2504.6,0.4789]
[1748849524953,0.00598432,2504.7,2504.6,1.8283]
[1748849525261,0.00598432,2504.7,2504.6,2.4701]
[1748849525561,0.00598432,2504.7,2504.6,2.54079789]
[1748849527351,0.00598432,2504.7,2504.6,43.34079789]
[1748849528257,0.00598432,2504.7,2504.6,0.07069789]
[1748849528445,0.48486432,2504.7,2504.6,0.07069789]
[1748849530153,0.00598432,2504.7,2504.6,0.07069789]
[1748849530346,1.30378432,2504.7,2504.6,0.07069789]
[1748849530551,1.30378432,2504.7,2504.6,0.54959789]
[1748849530950,1.93838432,2504.7,2504.6,0.54959789]
[1748849531252,2.41726432,2504.7,2504.6,0.07069789]
[1748849531563,1.93838432,2504.7,2504.6,0.54959789]
[1748849533557,18.62698432,2504.7,2504.6,0.54959789]
[1748849533758,0.00598432,2504.7,2504.6,0.54959789]
[1748849534654,3.2078,2505.6,2504.6,10.35608648]
[1748849534866,3.2078,2505.6,2505.4,0.47873]
[1748849535164,18.632,2505.5,2505.4,0.47873]
[1748849535349,3.68651,2505.6,2505.4,0.47873]
[1748849535661,18.63,2505.5,2505.4,0.47873]
[1748849536058,18.63,2505.5,2505.3,0.47875]
[1748849536258,19.10874,2505.5,2505.2,1.82968]
[1748849536463,18.63,2505.5,2505.2,1.3509]
[1748849536663,18.63,2505.5,2505.4,0.47875]
[1748849536862,19.10873,2505.5,2505.3,1.82966]
[1748849537160,19.10073,2505.5,2505.3,1.82966]
[1748849538169,18.622,2505.5,2505.4,0.47875]
[1748849538367,18.614,2505.5,2505.3,1.3509]
[1748849538666,3.2078,2505.6,2505.5,0.47873]
[1748849538868,5.39284944,2505.8,2505.6,0.47871]
[1748849539168,18.617,2505.7,2505.5,0.47872]
[1748849539561,19.0957,2505.7,2505.5,0.47872]
[1748849540270,0.47871,2505.6,2505.4,0.47874]
[1748849540665,1.75181,2505.6,2505.5,0.07069789]
[1748849542761,4.95961,2505.6,2505.5,0.07069789]
[1748849542957,9.95961,2505.6,2505.5,0.07069789]
[1748849544256,4.95961,2505.6,2505.5,0.07069789]
[1748849544465,9.95961,2505.6,2505.5,0.07069789]
[1748849546968,28.53861,2505.6,2505.5,0.07069789]
[1748849547172,4.95961,2505.6,2505.5,0.07069789]
[1748849547370,23.53561,2505.6,2505.5,0.07069789]
[1748849547970,0.4787,2505.7,2505.5,0.07069789]
[1748849548170,21.7898,2505.6,2505.5,0.54941789]
[1748849548367,3.2078,2505.6,2505.5,1.93501789]
[1748849548972,3.2078,2505.6,2505.5,3.11949736]
[1748849549470,3.2078,2505.6,2505.5,3.12140239]
[1748849550372,3.68651,2505.6,2505.5,2.64268239]
[1748849550575,3.2078,2505.6,2505.5,1.93502789]
[1748849551070,3.2078,2505.6,2505.5,1.45629789]
[1748849551272,3.2078,2505.6,2505.5,2.64268239]
[1748849551470,0.4787,2505.7,2505.5,3.12141239]
[1748849551659,0.4787,2505.7,2505.5,1.93502789]
[1748849551862,20.32562944,2505.8,2505.5,3.12141239]
[1748849552060,20.32562944,2505.8,2505.5,1.93502789]
[1748849552571,0.47869,2505.7,2505.5,3.12141239]
[1748849552874,20.32562944,2505.8,2505.6,0.47871]
[1748849553673,18.56994944,2505.8,2505.7,0.47869]
[1748849553973,19.04861944,2505.8,2505.6,0.4787]
[1748849554168,18.56994944,2505.8,2505.7,0.47869]
[1748849554383,18.56994944,2505.8,2505.6,0.4787]
[1748849554566,0.00394944,2505.8,2505.7,1.78509]
[1748849554767,18.55294944,2505.8,2505.7,1.78509]
[1748849554968,18.55294944,2505.8,2505.7,1.3064]
[1748849555169,19.03161944,2505.8,2505.7,1.3064]
[1748849555970,0.00394944,2505.8,2505.7,1.78509]
[1748849556171,18.54494944,2505.8,2505.7,1.78509]
[1748849557375,19.02361944,2505.8,2505.7,1.3064]
[1748849558077,19.02361944,2505.8,2505.7,1.78509]
[1748849558078,0.00394944,2505.8,2505.7,1.78509]
[1748849558477,0.00394944,2505.8,2505.7,2.97091406]
[1748849558681,0.00394944,2505.8,2505.7,1.78509]
[1748849558882,0.00394944,2505.8,2505.7,2.42849]
[1748849559379,0.00394944,2505.8,2505.7,3.61369386]
[1748849560175,0.00394944,2505.8,2505.7,3.13500386]
[1748849560481,0.00394944,2505.8,2505.7,3.61369386]
[1748849561379,0.00394944,2505.8,2505.7,2.42849]
[1748849561688,0.00394944,2505.8,2505.7,3.61369386]
[1748849562584,0.00394944,2505.8,2505.7,3.61440394]
[1748849562891,0.00394944,2505.8,2505.7,1.18591394]
[1748849562892,0.48261944,2505.8,2505.7,1.18591394]
[1748849563087,1.38744944,2505.8,2505.7,1.18591394]
[1748849563387,1.86611944,2505.8,2505.7,1.18591394]
[1748849563687,1.38744944,2505.8,2505.7,1.18591394]
[1748849564488,1.38744944,2505.8,2505.7,1.66460394]
[1748849565387,1.38744944,2505.8,2505.7,1.18591394]
[1748849565587,1.86611944,2505.8,2505.7,1.18591394]
[1748849565779,1.86611944,2505.8,2505.6,4.87242394]
[1748849565984,0.6421,2505.7,2505.6,3.68651]
[1748849566187,0.6421,2505.7,2505.6,4.87391679]
[1748849567088,0.6421,2505.7,2505.6,4.87402175]
[1748849568388,0.6421,2505.7,2505.6,6.19752175]
[1748849569597,0.6421,2505.7,2505.6,5.71881175]
[1748849569790,1.12079,2505.7,2505.6,4.39531175]
[1748849570490,1.12079,2505.7,2505.6,1.18751175]
[1748849570691,0.47871,2505.6,2505.5,1.19349607]
[1748849570896,0.47871,2505.6,2505.5,0.00598432]
[1748849571192,10.4391,2505.6,2505.1,1.18751175]
[1748849571389,3.2078,2505.3,2504.9,1.18872474]
[1748849571586,3.2078,2505.3,2505.0,2.48002474]
[1748849571785,18.528,2505.2,2505.1,1.1564]
[1748849572102,0.4788,2505.1,2505.0,2.47959258]
[1748849572396,0.47882,2505.0,2504.9,1.18829258]
[1748849573491,0.47884,2504.9,2504.8,2.5674769]
[1748849573798,0.47884,2504.9,2504.8,3.9415769]
[1748849575596,0.47884,2504.9,2504.8,2.75328432]
[1748849575796,0.47884,2505.0,2504.8,4.4204369]
[1748849575995,18.517,2504.9,2504.8,4.4204369]
[1748849577899,21.7388,2505.3,2505.2,0.47879]
[1748849578901,21.7388,2505.3,2505.2,2.53659]
[1748849579299,3.2078,2505.3,2505.2,2.53659]
[1748849579496,0.00394944,2505.8,2505.2,11.46254]
[1748849579699,0.00394944,2505.8,2505.7,0.47869]
[1748849579905,0.00394944,2505.8,2505.5,5.26043513]
[1748849580100,0.00394944,2505.8,2505.7,0.47869]
[1748849580295,0.00394944,2505.8,2505.7,0.07069789]
[1748849581005,0.00394944,2505.8,2505.7,0.54938789]
[1748849582204,0.00394944,2505.8,2505.7,2.57788789]
[1748849582499,0.00394944,2505.8,2505.7,3.76386694]
[1748849582907,0.00394944,2505.8,2505.7,3.76354974]
[1748849584099,12.1677037,2506.8,2506.3,0.47858]
[1748849584100,19.68853,2506.6,2506.3,0.47858]
[1748849584405,19.68853,2506.6,2505.7,9.47206379]
[1748849584406,0.47857,2506.4,2506.1,7.7384]
[1748849584607,0.47857,2506.4,2506.2,1.83379]
[1748849584905,0.47856,2506.4,2506.2,1.3552]
[1748849585109,0.47856,2506.4,2506.2,2.47469]
[1748849586002,1.17051432,2506.6,2506.2,1.9961]
[1748849586202,18.514,2506.5,2506.2,1.9961]
[1748849586405,18.99255,2506.5,2506.2,2.47468]
[1748849586602,0.47856,2506.4,2506.2,2.47468]
[1748849587004,18.99255,2506.5,2506.2,2.47468]
[1748849587206,18.99255,2506.5,2506.3,0.47857]
[1748849587601,0.47856,2506.4,2506.2,1.9961]
[1748849587798,0.47856,2506.4,2506.2,2.47469]
[1748849588004,18.99254,2506.5,2506.2,2.47468]
[1748849588712,18.99254,2506.5,2506.3,0.47857]
[1748849589110,0.47857,2506.4,2506.2,2.47469]
[1748849589712,18.99255,2506.5,2506.3,0.47857]
[1748849589912,0.47856,2506.4,2506.2,2.47468]
[1748849590511,0.47857,2506.4,2506.2,2.47468]
[1748849591211,0.47857,2506.4,2506.3,1.3195]
[1748849592812,18.99255,2506.5,2506.3,1.79808]
[1748849593412,0.00598432,2506.6,2506.5,0.47854]
[1748849593604,0.48450432,2506.6,2506.5,0.47854]
[1748849594414,0.48451432,2506.6,2506.3,5.84907]
[1748849594609,0.48451432,2506.6,2506.4,0.47855]
[1748849595913,0.00598432,2506.6,2506.3,1.3195]
[1748849596112,1.31278432,2506.6,2506.1,3.8866]
[1748849596316,0.47859,2506.2,2506.1,3.2078]
[1748849597015,0.47859,2506.3,2506.1,3.68641]
[1748849598515,1.9628,2506.2,2506.1,3.68641]
[1748849598819,0.47861,2506.1,2506.0,0.00598432]
[1748849599022,19.8086,2506.1,2506.0,0.00598432]
[1748849599214,0.6582,2506.2,2506.0,0.00598432]
[1748849599512,1.3046,2506.5,2506.0,0.00598432]
[1748849599719,1.3046,2506.5,2506.0,3.21378432]
[1748849600022,1.78314,2506.5,2506.3,0.47856]
[1748849600618,1.78314,2506.5,2506.4,0.07069789]
[1748849609223,0.47854,2506.5,2506.4,0.07069789]
[1748849609422,3.21378432,2506.6,2506.5,0.47854]
[1748849609622,3.21378432,2506.6,2506.5,2.51364]
[1748849610129,0.47854,2506.5,2506.4,0.07069789]
[1748849610341,1.86044,2506.5,2506.4,0.07069789]
[1748849611346,3.69231432,2506.6,2506.4,0.54924789]
[1748849612841,0.47854,2506.5,2506.4,0.07069789]
[1748849613049,4.95751432,2506.6,2506.4,0.54925789]
[1748849613233,0.47854,2506.5,2506.4,0.54925789]
[1748849613947,0.47854,2506.5,2506.4,0.07069789]
[1748849615446,18.503,2506.5,2506.4,0.54925789]
[1748849615747,18.503,2506.5,2506.4,2.59815789]
[1748849616146,3.21378432,2506.6,2506.4,2.59815789]
[1748849616644,0.47854,2506.5,2506.4,0.07069789]
[1748849616838,2.47614,2506.5,2506.4,0.07069789]
[1748849617037,7.47614,2506.5,2506.4,0.07069789]
[1748849617238,9.8578437,2506.5,2506.4,0.07069789]
[1748849617437,9.8578437,2506.5,2506.0,0.00598432]
[1748849617438,0.47861,2506.1,2506.0,0.00598432]
[1748849617647,8.44236,2506.1,2505.6,1.18863425]
[1748849617943,0.47875,2505.4,2505.3,3.44133624]
[1748849618237,0.47875,2505.4,2505.1,4.3787659]
[1748849618238,0.47877,2505.3,2505.1,3.19610488]
[1748849618449,0.47879,2505.2,2505.1,3.19610488]
[1748849618841,0.47878,2505.3,2505.1,3.19610488]
[1748849619536,4.5001,2505.4,2505.1,3.19610488]
[1748849619847,0.47879,2505.2,2505.1,2.0059]
[1748849620043,0.47878,2505.3,2505.1,3.19610488]
[1748849620242,1.77108,2505.3,2505.1,2.0059]
[1748849620542,0.47879,2505.2,2505.1,2.0059]
[1748849620737,0.47881,2505.1,2505.0,1.19020488]
[1748849620939,3.2078,2505.1,2504.9,0.66058432]
[1748849621247,3.2078,2505.1,2504.9,1.13942432]
[1748849621440,3.2078,2505.1,2505.0,1.3046]
[1748849621746,0.47882,2505.0,2504.9,0.00598432]
[1748849622447,5.06412,2505.1,2504.9,0.00598432]
[1748849622745,0.47882,2505.0,2504.9,0.00598432]
[1748849623046,5.06412,2505.1,2504.9,0.00598432]
[1748849623344,0.47882,2505.0,2504.9,0.00598432]
[1748849624442,0.00598432,2505.3,2505.2,0.47879]
[1748849625545,0.00598432,2505.3,2505.2,1.11119]
[1748849628643,0.00598432,2505.3,2505.2,7.29696686]
[1748849629449,0.00598432,2505.3,2505.2,2.29696686]
[1748849629643,0.00598432,2505.3,2505.2,1.11119]
[1748849630043,0.00598432,2505.3,2505.2,1.18188789]
[1748849632750,0.00598432,2505.3,2505.2,41.98188789]
[1748849635950,0.00598432,2505.3,2505.2,43.16793758]
[1748849636549,0.00598432,2505.3,2505.2,41.98188789]
[1748849636750,0.00598432,2505.3,2505.2,1.18188789]
[1748849637252,0.00598432,2505.3,2505.2,41.98188789]
[1748849637755,0.00598432,2505.3,2505.2,43.16793758]
[1748849638055,0.00598432,2505.3,2505.2,41.98188789]
[1748849638350,0.00598432,2505.3,2505.2,43.16793758]
[1748849640656,0.00598432,2505.3,2505.2,43.56181925]
[1748849641960,0.00598432,2505.3,2505.2,48.56181925]
[1748849642161,3.2078,2505.9,2505.8,0.47867]
[1748849643051,3.2078,2505.9,2505.8,1.82257]
[1748849643250,0.00598432,2506.1,2506.0,0.47863]
[1748849644454,0.00598432,2506.1,2506.0,1.82253]
[1748849646455,0.00598432,2506.1,2506.0,1.3439]
[1748849646766,0.00598432,2506.1,2506.0,1.82253]
[1748849648653,0.00598432,2506.1,2506.0,5.03033]
[1748849648867,0.00598432,2506.1,2506.0,6.61306166]
[1748849651161,5.23,2506.7,2506.1,1.19654]
[1748849651363,18.503,2506.6,2506.3,3.2078]
[1748849651657,18.503,2506.6,2506.5,0.47852]
[1748849652263,19.8146,2506.6,2506.5,0.47852]
[1748849652964,1.3116,2506.6,2506.5,0.47852]
[1748849653170,1.3116,2507.3,2506.6,1.1963]
[1748849653464,1.962,2507.3,2506.8,3.2078]
[1748849653660,20.94139,2507.3,2507.0,0.47843]
[1748849653963,20.94139,2507.3,2506.9,1.3234]
[1748849653964,0.47841,2507.2,2506.9,1.3234]
[1748849654162,1.3116,2507.2,2507.0,0.47843]
[1748849654566,1.79001,2507.2,2507.0,0.47843]
[1748849654866,1.3116,2507.2,2506.9,1.80185]
[1748849655265,1.3116,2507.2,2507.0,0.47844]
[1748849655465,1.3116,2507.2,2507.0,1.76454]
[1748849655662,5.14974,2507.6,2507.0,1.2861]
[1748849655866,23.8397,2507.6,2507.3,0.47837]
[1748849656064,2.0693,2507.6,2507.4,0.47835]
[1748849656372,2.0693,2507.6,2507.4,0.47836]
[1748849656571,2.0693,2507.6,2507.2,1.971]
[1748849656767,2.0693,2507.6,2507.4,0.47837]
[1748849656959,2.54764,2507.6,2507.3,1.76448]
[1748849657167,2.0693,2507.6,2507.4,0.47836]
[1748849657665,2.0693,2507.6,2507.5,0.47835]
[1748849657866,2.0693,2507.6,2507.4,0.47835]
[1748849658073,2.54763,2507.6,2507.3,1.76447]
[1748849658272,2.54764,2507.6,2507.3,1.76447]
[1748849658772,2.54764,2507.6,2507.4,0.47837]
[1748849658974,2.0693,2507.6,2507.5,0.47835]
[1748849659173,2.0693,2507.6,2507.4,0.47836]
[1748849659671,0.47838,2507.4,2507.1,0.47841]
[1748849659868,1.86849,2507.3,2507.1,0.47841]
[1748849660076,1.3901,2507.3,2507.1,0.47841]
[1748849660568,0.47836,2507.5,2507.2,0.4784]
[1748849660773,18.97336,2507.5,2507.3,0.47838]
[1748849661372,1.75846,2507.5,2507.2,0.47839]
[1748849661670,20.25346,2507.5,2507.4,0.07069789]
[1748849662071,1.2801,2507.5,2507.4,0.07069789]
[1748849662273,20.25245,2507.5,2507.4,0.07069789]
[1748849665767,1.75845,2507.5,2507.4,0.07069789]
[1748849666072,20.25045,2507.5,2507.4,0.07069789]
[1748849670278,20.92395,2507.5,2507.4,0.07069789]
[1748849670569,20.92395,2507.5,2506.5,1.17995806]
[1748849670570,1.19597,2507.3,2506.5,1.17995806]
[1748849670770,25.4456,2507.5,2506.4,0.687]
[1748849670771,3.2078,2506.7,2506.4,0.687]
[1748849670974,0.47856,2506.4,2506.3,0.00598432]
[1748849671172,3.68636,2506.4,2506.3,0.00598432]
[1748849671373,3.88556,2506.4,2506.3,0.00598432]
[1748849673474,3.407,2506.4,2506.3,0.00598432]
[1748849673775,3.407,2506.4,2506.3,0.48456432]
[1748849673974,18.6932,2506.4,2506.3,0.48456432]
[1748849674181,0.1992,2506.4,2506.3,0.48456432]
[1748849675182,0.1992,2506.4,2506.3,1.86416432]
[1748849675481,0.1992,2506.4,2506.3,1.38558432]
[1748849676280,0.67776,2506.4,2506.3,0.00598432]
[1748849676679,2.02286,2506.4,2506.3,0.00598432]
[1748849677277,20.51686,2506.4,2506.3,0.00598432]
[1748849677478,18.6932,2506.4,2506.3,0.48456432]
[1748849677785,19.17176,2506.4,2506.3,0.00598432]
[1748849678085,19.17176,2506.4,2506.3,1.30258432]
[1748849678478,19.17176,2506.4,2506.3,0.00598432]
[1748849679185,22.37956,2506.4,2506.3,0.00598432]
[1748849679387,23.68506,2506.4,2506.3,0.00598432]
[1748849685586,5.19106,2506.4,2506.3,0.00598432]
[1748849685787,23.2075,2506.4,2506.3,0.00598432]
[1748849686086,23.68606,2506.4,2506.3,0.00598432]
[1748849687488,3.407,2506.4,2506.3,0.48455432]
[1748849687689,21.902,2506.4,2506.3,0.48455432]
[1748849688989,3.407,2506.4,2506.3,0.48455432]
[1748849689487,0.1992,2506.4,2506.3,0.48455432]
[1748849689878,0.1992,2506.4,2506.3,0.55525221]
[1748849690781,0.1992,2506.4,2506.3,2.54655221]
[1748849692988,0.67776,2506.4,2506.3,2.06798221]
[1748849693891,1.95286,2506.4,2506.3,0.07668221]
[1748849700790,20.44586,2506.4,2506.3,0.07668221]
[1748849702295,20.44586,2506.4,2505.9,1.18751777]
[1748849702296,0.47863,2506.0,2505.9,1.18751777]
[1748849702500,0.47865,2505.9,2505.8,1.18751777]
[1748849702799,2.45935,2505.9,2505.8,1.18751777]
[1748849702999,1.15756,2505.9,2505.7,1.66619777]
[1748849703300,18.492,2505.8,2505.7,2.33809777]
[1748849703491,18.492,2505.8,2505.7,1.15058]
[1748849703687,18.97067,2505.8,2505.7,1.85937454]
[1748849704394,18.492,2505.8,2505.7,1.85937454]
[1748849704695,18.97067,2505.8,2505.7,1.85937454]
[1748849704890,19.16997,2505.8,2505.7,1.85937454]
[1748849705691,19.16997,2505.8,2505.7,0.6719]
[1748849705995,18.6923,2505.8,2505.7,1.15059]
[1748849706198,18.6923,2505.8,2505.7,2.33743516]
[1748849706591,0.1993,2505.8,2505.7,2.33743516]
[1748849706790,18.6923,2505.8,2505.7,5.94112166]
[1748849706994,18.6923,2505.8,2505.7,5.46243166]
[1748849707199,18.6923,2505.8,2505.7,4.35839]
[1748849708092,19.17097,2505.8,2505.7,3.8797]
[1748849708394,19.17097,2505.8,2505.7,4.35839]
[1748849709101,19.17097,2505.8,2505.7,5.06603532]
[1748849709293,18.6923,2505.8,2505.7,4.35839]
[1748849710095,18.6923,2505.8,2505.7,5.5448692]
[1748849711194,19.17097,2505.8,2505.7,5.0661792]
[1748849711401,0.47869,2505.7,2505.6,1.8748792]
[1748849711696,0.47871,2505.6,2505.5,1.19246352]
[1748849711996,0.47871,2505.6,2505.5,0.00598432]
[1748849712598,18.97071,2505.6,2505.5,0.00598432]
[1748849713401,20.29341,2505.6,2505.5,0.00598432]
[1748849717207,0.47882,2505.0,2504.9,1.18609122]
[1748849717403,18.493,2505.0,2504.9,1.18609122]
[1748849717606,18.97182,2505.0,2504.8,2.46969122]
[1748849717906,0.47884,2504.9,2504.8,1.18609122]
[1748849718201,0.47886,2504.8,2504.7,4.39389122]
[1748849718508,1.2631,2504.9,2504.6,1.19207554]
[1748849718509,0.47888,2504.7,2504.6,1.19207554]
[1748849718698,6.43008,2504.7,2504.6,0.00598432]
[1748849718902,9.63788,2504.7,2504.6,0.00598432]
[1748849719402,0.47896,2504.3,2504.1,1.3371]
[1748849719605,18.97298,2504.2,2504.1,1.3371]
[1748849720001,18.97298,2504.2,2503.9,1.18554368]
[1748849720002,0.47901,2504.0,2503.9,1.18554368]
[1748849720207,0.47903,2503.9,2503.8,1.3234]
[1748849720410,0.47905,2503.8,2503.6,4.10537534]
[1748849720699,4.032,2503.9,2503.7,1.81617]
[1748849720905,4.51103,2503.9,2503.8,1.3371]
[1748849721204,4.032,2503.9,2503.5,0.6712]
[1748849721397,0.47906,2503.8,2503.5,2.53221]
[1748849722105,0.47907,2503.7,2503.5,2.0531]
[1748849722402,18.97609,2503.6,2503.5,2.0531]
[1748849723305,0.47911,2503.5,2503.4,0.00598432]
[1748849723605,7.71991,2503.5,2503.4,0.00598432]
[1748849723806,0.47923,2502.9,2502.7,3.2078]
[1748849724001,18.97524,2502.9,2502.7,4.5897]
[1748849724201,3.2078,2502.8,2502.5,0.695]
[1748849724398,4.51327,2502.7,2502.5,0.695]
[1748849724710,4.51327,2502.7,2502.5,1.9936]
[1748849724908,5.302,2502.7,2502.5,1.2986]
[1748849725409,0.47929,2502.6,2502.4,3.2078]
[1748849725706,0.47928,2502.6,2502.3,1.30458432]
[1748849725905,1.74728,2502.6,2502.3,1.78392432]
[1748849726103,3.2078,2502.5,2502.3,1.30458432]
[1748849726408,0.47932,2502.4,2502.3,1.30458432]
[1748849727105,0.47932,2502.4,2502.3,0.00598432]
[1748849727602,1.74342,2502.4,2502.3,0.00598432]
[1748849727907,0.47939,2502.1,2501.8,0.6769]
[1748849728203,21.7128,2502.0,2501.8,1.15633]
[1748849728797,21.7128,2502.0,2501.8,0.6769]
[1748849729001,0.47944,2501.9,2501.6,1.32138432]
[1748849729199,22.9769,2502.0,2501.6,0.00598432]
[1748849729398,1.2641,2501.8,2501.6,0.00598432]
[1748849729709,7.72225,2501.7,2501.6,0.00598432]
[1748849730602,26.23825,2501.7,2501.6,0.00598432]
[1748849731309,26.24125,2501.7,2501.6,0.00598432]
[1748849731509,3.68725,2501.7,2501.6,0.00598432]
[1748849731707,4.036,2501.8,2501.6,0.00598432]
[1748849732005,18.533,2501.7,2501.6,3.69324432]
[1748849732201,18.533,2501.7,2501.6,0.00598432]
[1748849732402,18.539,2501.7,2501.6,0.00598432]
[1748849732799,18.538,2501.7,2501.6,0.00598432]
[1748849732999,3.68721,2502.0,2501.8,0.47943]
[1748849733205,22.574,2501.9,2501.7,0.47945]
[1748849733411,18.535,2501.8,2501.7,0.47945]
[1748849733805,3.68721,2502.0,2501.7,0.47945]
[1748849734199,23.06242,2501.9,2501.7,0.47945]
[1748849734408,4.96026,2502.3,2502.0,0.47939]
[1748849734610,22.585,2502.2,2501.7,0.6493]
[1748849734912,0.47936,2502.2,2501.7,0.6493]
[1748849735101,18.539,2502.1,2501.9,0.4794]
[1748849735502,0.1998,2502.0,2501.9,0.47942]
[1748849737305,0.1998,2502.0,2501.7,0.6493]
[1748849737505,0.1998,2502.0,2501.6,0.07668221]
[1748849737506,0.47944,2501.8,2501.6,0.07668221]
[1748849737707,0.47944,2501.8,2501.6,0.55615221]
[1748849737907,3.68723,2501.9,2501.6,0.55615221]
[1748849738097,0.47944,2501.8,2501.6,0.55615221]
[1748849738301,3.2078,2501.9,2501.7,0.47945]
[1748849738502,3.68722,2501.9,2501.6,0.07668221]
[1748849738801,3.68722,2501.9,2501.7,0.47944]
[1748849738802,18.544,2501.8,2501.7,0.47944]
[1748849740705,3.68722,2501.9,2501.7,0.47944]
[1748849740902,3.2078,2501.9,2501.8,0.47944]
[1748849741215,3.2078,2501.9,2501.7,0.47944]
[1748849741216,22.22722,2501.9,2501.7,0.47944]
[1748849741417,21.7478,2501.9,2501.8,0.47944]
[1748849741712,26.28823,2501.9,2501.7,0.47945]
[1748849742105,18.554,2501.8,2501.7,0.47945]
[1748849742306,0.1998,2502.0,2501.6,3.28448221]
[1748849742510,18.7638,2502.0,2501.9,0.47942]
[1748849742708,0.47944,2501.8,2501.6,3.76395221]
[1748849743012,0.47945,2501.7,2501.6,0.07668221]
[1748849743915,0.47945,2501.7,2501.6,0.07069789]
[1748849744511,1.77155,2501.7,2501.6,0.07069789]
[1748849745216,6.2921,2501.7,2501.3,3.2078]
[1748849745414,0.47962,2500.9,2500.7,0.6672]
[1748849745717,18.601,2500.8,2500.7,1.14685]
[1748849745912,18.601,2500.8,2500.7,0.6672]
[1748849746218,0.0059964,2501.0,2500.7,0.6672]
[1748849746417,0.0059964,2501.0,2500.9,0.47961]
[1748849746622,0.0059964,2501.0,2500.9,1.88001]
[1748849746916,0.0059964,2501.0,2500.9,6.88001]
[1748849747318,0.0059964,2501.0,2500.9,1.88001]
[1748849747711,0.0059964,2501.0,2500.9,6.88001]
[1748849747911,0.0059964,2501.0,2500.9,1.88001]
[1748849749714,0.0059964,2501.0,2500.9,3.06057516]
[1748849749914,0.0059964,2501.0,2500.9,6.95070789]
[1748849750109,3.2078,2501.5,2501.4,0.47951]
[1748849750713,4.2498,2502.0,2501.8,0.47942]
[1748849750914,0.47944,2501.8,2501.5,0.6824]
[1748849751217,0.47945,2501.8,2501.6,0.47947]
[1748849751411,0.47945,2501.8,2501.7,1.2828]
[1748849752212,0.47947,2501.6,2501.5,1.86883074]
[1748849752419,0.47947,2501.6,2501.5,2.26513166]
[1748849752912,4.96466,2501.7,2501.5,2.74462166]
[1748849753111,4.96466,2501.7,2501.5,4.06522166]
[1748849753611,4.96466,2501.7,2501.5,4.8553559]
[1748849753816,3.2078,2501.7,2501.6,0.47947]
[1748849754012,3.2078,2501.7,2501.6,2.8523359]
[1748849754412,3.68725,2501.7,2501.6,2.3728659]
[1748849754611,3.68725,2501.7,2501.5,4.8553559]
[1748849754814,3.68725,2501.7,2501.6,2.3728659]
[1748849755307,0.47947,2501.6,2501.5,3.0552659]
[1748849755511,0.47947,2501.6,2501.5,2.3728659]
[1748849755712,1.77107,2501.6,2501.5,2.3728659]
[1748849755908,3.87,2501.7,2501.6,0.47947]
[1748849756218,22.517,2501.7,2501.6,2.86553546]
[1748849756411,22.517,2501.7,2501.6,0.47947]
[1748849756718,0.0059964,2501.9,2501.8,0.47944]
[1748849756913,18.6589964,2501.9,2501.8,0.47944]
[1748849757112,18.6589964,2501.9,2501.8,1.78524]